Cogmind - Beta 14 @@@ ROGUE MODE // 2025.03.09 @ 15:23:57 Player: LightKnight Result: Destroyed by Y-54 Guardian with Flak Gun Performance ------------- Evolutions (3) 1500 Regions Visited (8) 1600 Robots Destroyed (51) 255 Value Destroyed (1272) 1272 Prototype IDs (8) 160 Alien Tech Used (0) 0 Bonus (-27) -27 TOTAL SCORE: 4760 Bonus ------- Friendly Fire -27 Cogmind --------- Core Integrity 0/700 Matter 183/300 Energy 100/100 System Corruption 21% Temperature Cool (12) Movement Core (50) Location -7/Factory Parts ------- > --- POWER (1) -------- (None) > --- PROPULSION (4) --- (None) > --- UTILITY (6) ------ Visual Processing Unit > --- WEAPON (2) ------- Power Maul > --- INVENTORY (5) ---- Cooling System Improved Sensor Array Maul Maul Peak State ------------ > --- POWER ------------ Light Deuterium Engine > --- PROPULSION ------- Improved Hover Unit Improved Hover Unit Gravmag System > --- UTILITY ---------- Advanced Weight Redist. System Visual Processing Unit Melee Analysis Suite Transmission Jammer Advanced System Shield Sensor Drone Bay > --- WEAPON ----------- Maul Power Maul > --- INVENTORY -------- Cooling System Improved Sensor Array Maul [Rating: 43] Favorites ----------- Power Improved Ion Engine Engine Improved Ion Engine Propulsion Light Treads Treads Light Treads Leg Aluminum Leg Hover Unit Improved Hover Unit Flight Unit VTOL Module Utility Sensor Drone Bay Device Sensor Drone Bay Storage Small Storage Unit Processor Improved Targeting Computer Hackware Hacking Suite Protection Hardened Medium Armor Plating Weapon Heavy Assault Rifle Energy Gun Small Laser Ballistic Gun Heavy Assault Rifle Launcher Grenade Launcher Impact Weapon Great Maul Build | -11 -10 -10 -9 -9 -8 -7 -7 -7 ------- Run | Yrd Mat Min Mat Min Mat Fac Was Fac Slots Evolved 6 | . . . 2 . 2 2 . . Power . | . . . . . . . . . Propulsion 2 | . . . 1 . . 1 . . Utility 4 | . . . 1 . 2 1 . . Weapon . | . . . . . . . . . Parts Attached 85 | 1 8 5 20 5 11 18 2 15 Power 12 | . 2 . 5 1 1 1 . 2 Engine 12 | . 2 . 5 1 1 1 . 2 Core . | . . . . . . . . . Reactor . | . . . . . . . . . Propulsion 26 | . 1 2 7 3 2 6 1 4 Treads 8 | . . 2 1 3 2 . . . Leg 7 | . 1 . 6 . . . . . Wheel . | . . . . . . . . . Hover 4 | . . . . . . . . 4 Flight 7 | . . . . . . 6 1 . Utility 26 | . 1 1 4 . 5 7 1 7 Device 15 | . 1 1 3 . 1 4 . 5 Storage . | . . . . . . . . . Processor 8 | . . . 1 . 2 3 . 2 Hackware 2 | . . . . . 1 . 1 . Protection 1 | . . . . . 1 . . . Artifact . | . . . . . . . . . Weapon 21 | 1 4 2 4 1 3 4 . 2 Energy Gun 6 | 1 2 1 1 . 1 . . . Energy Cannon . | . . . . . . . . . Ballistic Gun 6 | . 1 . 2 1 2 . . . Ballistic Cannon . | . . . . . . . . . Launcher 4 | . 1 1 1 . . 1 . . Special Weapon . | . . . . . . . . . Impact Weapon 5 | . . . . . . 3 . 2 Slashing Weapon . | . . . . . . . . . Piercing Weapon . | . . . . . . . . . Special Melee Weapon . | . . . . . . . . . Unidentified Prototypes 1 | . . 1 . . . . . . Corrupted Parts 1 | . . . . . . . 1 . System Corruption 1 | . . . . . . . 1 . Parts Lost 32 | . 1 1 7 . 2 10 2 9 Power 5 | . . 1 2 . . 1 . 1 Propulsion 14 | . . . 4 . . 5 1 4 Utility 10 | . . . 1 . 1 3 1 4 Weapon 3 | . 1 . . . 1 1 . . Highest Loss Streak 9 | . 1 1 4 . 1 7 2 9 To Critical Strikes . | . . . . . . . . . Average Slot Usage (%) 84 | . 97 97 86 83 97 60 12 59 Engine 8 | . 14 11 8 6 9 3 . 5 Treads 13 | . . 21 2 24 27 . . . Leg 7 | . 28 6 24 . . . . . Flight 2 | . . . . . . 14 . . Device 16 | . 11 14 18 22 24 7 . 14 Storage 5 | . 14 14 9 . . . . . Processor 6 | . . . . 11 8 17 10 9 Hackware 1 | . . . . . 2 7 1 7 Protection 1 | . . . . . 7 . . . Energy Gun 7 | . 26 17 11 . . . . . Ballistic Gun 8 | . . . 7 18 17 4 . . Launcher 2 | . 1 10 1 . . . . . Peak Build Rating 43 | 6 7 14 22 21 33 38 16 43 Average Rating 19 | 6 6 12 17 18 27 23 5 28 On Entrance 13 | 6 6 7 13 15 21 33 14 7 Naked Turns 20 | . . . . . . . 20 . Heaviest Build 38 | 11 15 26 34 29 38 16 . 23 Greatest Support 62 | 20 20 40 33 60 62 16 4 32 Greatest Overweight (x) 4 | . . 1 1 1 . 4 . . Average Overweight (x) . | . . . . . . . . . Largest Inventory Capacity 8 | 8 8 8 8 5 5 5 5 5 Average Capacity 6 | 8 8 8 7 5 5 5 5 5 Most Carried 8 | 6 8 8 8 5 5 5 5 5 Average Carried 5 | 6 7 7 6 4 4 4 4 3 Final Capacity 8 | 8 8 8 5 5 5 5 5 5 Final Carried 8 | 6 8 8 5 5 5 5 4 4 Class Distribution -------------------- 62% | Mutant 32% | Scavenger-Mutant Dominant Class ---------------- Mutant | -10/Materials Mutant | -10/Mines Mutant | -9/Materials Scavenger-Mutant | -9/Mines Scavenger-Mutant | -8/Materials Mutant | -7/Factory Mutant | -7/Waste Scavenger-Mutant | -7/Factory Resources | -11 -10 -10 -9 -9 -8 -7 -7 -7 ----------- Run | Yrd Mat Min Mat Min Mat Fac Was Fac Matter Collected 1166 | 146 126 103 253 87 308 120 . 23 Remotely . | . . . . . . . . . Salvage Created 1550 | . 324 41 484 111 430 137 . 23 Parts 111 | . 30 . 35 13 24 4 . 5 Haulers Intercepted . | . . . . . . . . . Recyclers Shooed 1 | . . 1 . . . . . . Parts Field Recycled . | . . . . . . . . . Retrieved Matter . | . . . . . . . . . Parts Self-Destructed . | . . . . . . . . . Prevented . | . . . . . . . . . Kills | -11 -10 -10 -9 -9 -8 -7 -7 -7 ------- Run | Yrd Mat Min Mat Min Mat Fac Was Fac Combat Hostiles Destroyed 44 | . 11 3 14 2 9 5 . . Melee 3 | . . . . . . 3 . . Guns 32 | . 8 3 10 2 9 . . . AOE 7 | . 3 . 4 . . . . . Classes Destroyed 8 | . 4 1 3 . . . . . Worker 3 | . 1 . 2 . . . . . Recycler 1 | . . . 1 . . . . . Watcher 6 | . 1 . 1 . 2 1 . 1 Swarmer 22 | . 6 . 8 . 3 5 . . Grunt 12 | . 5 . 2 . 5 . . . Duelist 1 | . . . 1 . . . . . Sentry 6 | . . . 3 2 1 . . . Assembled 3 | . . 3 . . . . . . Best Kill Streak 6 | . 4 2 6 2 4 5 . 1 Combat Bots Only 4 | . 3 2 4 2 4 4 . . Max Kills in Single Turn 5 | . 2 1 5 1 1 1 . 1 Gunslinging . | . . . . . . . . . Exploded 3 | . 2 . 3 . . . . . Melee 1 | . . . . . . 1 . . Uniques/NPCs Destroyed . | . . . . . . . . . Combat | -11 -10 -10 -9 -9 -8 -7 -7 -7 -------- Run | Yrd Mat Min Mat Min Mat Fac Was Fac Hostile Shots Fired 401 | . 41 22 106 8 64 95 2 63 Missed 128 | . 11 6 24 2 13 50 . 22 Damage Taken 4192 | . 337 505 1078 78 733 822 71 568 Core 1203 | . 73 153 160 26 87 407 71 226 Absorbed by Shields . | . . . . . . . . . Core Remaining (%) 61 | 100 . 9 . 53 84 . . . Volleys Fired 142 | . 27 17 44 4 49 1 . . Largest 2 | . 2 2 2 2 2 1 . . Hottest 105 | . 80 80 105 46 63 . . . Shots Fired 278 | . 54 29 87 9 98 1 . . Gun 270 | . 51 27 85 9 98 . . . Cannon . | . . . . . . . . . Launcher 8 | . 3 2 2 . . 1 . . Special . | . . . . . . . . . Kinetic 132 | . 2 . 26 9 95 . . . Thermal 138 | . 49 27 59 . 3 . . . Explosive 8 | . 3 2 2 . . 1 . . Electromagnetic . | . . . . . . . . . Robot Hit Streak 12 | . 7 5 12 7 12 2 . . Robot Miss Streak 5 | . 3 3 5 . 3 . . . Penetration Max . | . . . . . . . . . Secondary Targets 2 | . 1 . . . 1 . . . Max Gunslinging Chain 1 | . 1 . . . 1 . . . Shots Hit Robots 193 | . 36 15 58 7 67 9 . 1 Core Hits 86 | . 19 7 23 4 28 4 . 1 Critical Kills 1 | . . . . . . . . 1 Critical Parts Destroyed 3 | . . . . . . 3 . . Critical Strikes 5 | . . . 1 . . 3 . 1 Burn 1 | . . . 1 . . . . . Smash 4 | . . . . . . 3 . 1 Melee Attacks 27 | . . . . . . 21 . 6 Impact 27 | . . . . . . 21 . 6 Slashing . | . . . . . . . . . Piercing . | . . . . . . . . . Sneak Attacks . | . . . . . . . . . Combat Hostiles . | . . . . . . . . . Follow-up Attacks . | . . . . . . . . . Damage Inflicted 3226 | . 548 199 1099 107 781 464 . 28 Guns 2288 | . 371 164 873 107 773 . . . Cannons 11 | . . . . . . 11 . . Explosions 552 | . 177 27 225 . . 123 . . Melee 358 | . . . . . . 330 . 28 Ramming 17 | . . 8 1 . 8 . . . Kinetic 1170 | . 10 . 312 107 741 . . . Thermal 1118 | . 361 164 561 . 32 . . . Explosive 552 | . 177 27 225 . . 123 . . Electromagnetic . | . . . . . . . . . Impact 369 | . . . . . . 341 . 28 Slashing . | . . . . . . . . . Piercing . | . . . . . . . . . Highest Corruption 21 | . . 3 1 1 . 4 10 21 Average Corruption 2 | . . 3 1 1 . 2 8 10 Corruption Purged . | . . . . . . . . . Corruption Blocked . | . . . . . . . . . Effects 21 | . . 3 4 4 . . . 10 Message Errors 10 | . . 1 2 2 . . . 5 Matter Fused 2 | . . . . 1 . . . 1 Heat Flow Errors 2 | . . . 1 . . . . 1 Parts Rejected 1 | . . . . . . . . 1 Data Loss (minor) 3 | . . 1 . . . . . 2 Data Loss (major) 1 | . . 1 . . . . . . Misfires 1 | . . . . 1 . . . . Alerts 1 | . . . 1 . . . . . Overload Shots . | . . . . . . . . . Overflow Damage 201 | . . . 30 . . 171 . . Projectiles . | . . . . . . . . . Explosions 30 | . . . 30 . . . . . Melee 171 | . . . . . . 171 . . Knockbacks 1 | . . . . . . 1 . . Impact 1 | . . . . . . 1 . . Kinetic . | . . . . . . . . . Secondary . | . . . . . . . . . Self-Inflicted Damage 11 | . . 11 . . . . . . Shots 1 | . . 1 . . . . . . Rammed 6 | . . 4 . . 2 . . . Targets Rammed 9 | . . 6 1 . 2 . . . Kicked 3 | . . 2 1 . . . . . Crushed . | . . . . . . . . . Highest Temperature 243 | . 72 90 243 . . . . 92 Average Temperature 35 | . 17 34 42 . . . . 51 Received Heat Transfer 897 | . 153 . 297 18 315 36 . 78 Siege Activations . | . . . . . . . . . Robots Corrupted 2 | . . . . . . 2 . . Combat Hostiles 2 | . . . . . . 2 . . Parts Fried 2 | . . . . . . 2 . . Impact Corruptions 6 | . . . . . . 6 . . Robots Melted . | . . . . . . . . . Combat Hostiles . | . . . . . . . . . Parts Melted 5 | . 1 . 4 . . . . . Heat Transferred 2683 | . 825 375 1408 . 75 . . . Parts Sabotaged . | . . . . . . . . . Parts Stolen . | . . . . . . . . . Parts Stripped . | . . . . . . . . . Power Chain Reactions . | . . . . . . . . . Alert | -11 -10 -10 -9 -9 -8 -7 -7 -7 ------- Run | Yrd Mat Min Mat Min Mat Fac Was Fac Peak Influence 318 | . 318 45 303 126 166 316 95 102 Initial 85 | . . 45 5 70 . 74 85 66 Average 89 | . 123 27 144 53 79 140 86 83 Maximum Alert Level 1 | . 1 . 1 . . 1 . . Low Security (%) 96 | 100 88 100 95 100 100 87 100 100 Level 1 3 | . 11 . 4 . . 12 . . Level 2 . | . . . . . . . . . Level 3 . | . . . . . . . . . Level 4 . | . . . . . . . . . Level 5 . | . . . . . . . . . High Security . | . . . . . . . . . Max Security . | . . . . . . . . . Squads Dispatched 8 | . 2 . 1 . 1 1 . 3 Investigation 2 | . 1 . . . . . . 1 Extermination . | . . . . . . . . . Reinforcement 6 | . 1 . 1 . 1 1 . 2 Assault . | . . . . . . . . . Garrison . | . . . . . . . . . Intercept . | . . . . . . . . . Searches Triggered . | . . . . . . . . . Construction Impeded 1 | . . . . . 1 . . . Haulers Reinforced . | . . . . . . . . . Active Scanning Responses . | . . . . . . . . . Cargo Convoy Interrupts . | . . . . . . . . . Stealth | -11 -10 -10 -9 -9 -8 -7 -7 -7 --------- Run | Yrd Mat Min Mat Min Mat Fac Was Fac Distress Signals 4 | . . . . . 3 1 . . Communications Jammed . | . . . . . . . . . Distress Signals . | . . . . . . . . . Times Spotted 106 | . 13 15 18 2 17 28 5 8 Peak Tracking Total 7 | . 4 7 4 2 6 7 5 6 Tactical Retreats 8 | . . 1 1 . . 5 . 1 Traps | -11 -10 -10 -9 -9 -8 -7 -7 -7 ------- Run | Yrd Mat Min Mat Min Mat Fac Was Fac Traps Triggered 11 | . 1 . 1 . . 7 . 2 Indirectly . | . . . . . . . . . Trap Hack Attempts . | . . . . . . . . . Triggered . | . . . . . . . . . Disarmed . | . . . . . . . . . Reprogrammed . | . . . . . . . . . Reused . | . . . . . . . . . Traps Extracted . | . . . . . . . . . Installed . | . . . . . . . . . Triggered . | . . . . . . . . . Machines | -11 -10 -10 -9 -9 -8 -7 -7 -7 ---------- Run | Yrd Mat Min Mat Min Mat Fac Was Fac Machines Disabled 3 | . 1 . 1 . . 1 . . Max in Single Turn 1 | . 1 . 1 . . 1 . . Garrison Access 2 | . . . . . . 1 . 1 Machines Repaired . | . . . . . . . . . Machines Dismantled . | . . . . . . . . . Machines Sabotaged . | . . . . . . . . . Overloaded Fab Kills . | . . . . . . . . . Hacking | -11 -10 -10 -9 -9 -8 -7 -7 -7 --------- Run | Yrd Mat Min Mat Min Mat Fac Was Fac Machines Accessed 22 | . 4 1 1 1 2 10 . 3 Terminals 16 | . 4 . 1 1 2 6 . 2 Fabricators 2 | . . . . . . 2 . . Repair Stations 1 | . . . . . . 1 . . Recycling Units . | . . . . . . . . . Scanalyzers . | . . . . . . . . . Garrison Access 2 | . . . . . . 1 . 1 Total Hacks 37 | . 12 1 1 1 4 15 . 3 Successful 11 | . 3 1 . . 2 3 . 2 Failed 26 | . 9 . 1 1 2 12 . 1 Catastrophic 9 | . 2 . . . 1 5 . 1 Database Lockouts . | . . . . . . . . . Manual 12 | . 4 . 1 1 1 4 . 1 Terminals 30 | . 12 . 1 1 4 10 . 2 Fabricators 3 | . . . . . . 3 . . Repair Stations 1 | . . . . . . 1 . . Recycling Units . | . . . . . . . . . Scanalyzers . | . . . . . . . . . Garrison Access 2 | . . . . . . 1 . 1 Terminal Hacks 7 | . 2 1 . . 2 1 . 1 Prototype ID Bank 4 | . 2 . . . 1 1 . . Open Door 1 | . . 1 . . . . . . Level Access Points 1 | . . . . . . . . 1 Branch Access Points 1 | . . . . . 1 . . . Fabricator Hacks 1 | . . . . . . 1 . . Network Status 1 | . . . . . . 1 . . Repair Station Hacks . | . . . . . . . . . Recycling Unit Hacks . | . . . . . . . . . Scanalyzer . | . . . . . . . . . Garrison Access Hacks 2 | . . . . . . 1 . 1 Seal Access 2 | . . . . . . 1 . 1 Unauthorized Hacks 1 | . 1 . . . . . . . Terminals 1 | . 1 . . . . . . . Operators 1 | . 1 . . . . . . . Fabricators . | . . . . . . . . . Repair Stations . | . . . . . . . . . Recycling Units . | . . . . . . . . . Scanalyzers . | . . . . . . . . . Garrison Access . | . . . . . . . . . Data Cores Recovered . | . . . . . . . . . Used . | . . . . . . . . . Hacking Detections 17 | . 3 . 1 1 2 8 . 2 Full Trace Events . | . . . . . . . . . Feedback Events . | . . . . . . . . . Feedback Blocked . | . . . . . . . . . Robot Schematics Acquired . | . . . . . . . . . Robots Built . | . . . . . . . . . Authchips . | . . . . . . . . . Time . | . . . . . . . . . Total Robot Build Rating . | . . . . . . . . . Part Schematics Acquired . | . . . . . . . . . Parts Built . | . . . . . . . . . Authchips . | . . . . . . . . . Time . | . . . . . . . . . Total Part Build Rating . | . . . . . . . . . Parts Repaired . | . . . . . . . . . Time . | . . . . . . . . . Parts Recycled . | . . . . . . . . . Recycled Matter . | . . . . . . . . . Retrieved Matter . | . . . . . . . . . Retrieved Components . | . . . . . . . . . Parts Scanalyzed . | . . . . . . . . . Part Schematics Acquired . | . . . . . . . . . Parts Damaged . | . . . . . . . . . Bothacking | -11 -10 -10 -9 -9 -8 -7 -7 -7 ------------ Run | Yrd Mat Min Mat Min Mat Fac Was Fac Used RIF Installer . | . . . . . . . . . Robots Hacked . | . . . . . . . . . Non-combat . | . . . . . . . . . Combat . | . . . . . . . . . Robot Hacks Applied . | . . . . . . . . . Relay Couplers Released . | . . . . . . . . . Fabnet Peak Effective % . | . . . . . . . . . Robots Rewired . | . . . . . . . . . Allies Hacked . | . . . . . . . . . Hacks Repelled . | . . . . . . . . . Allies | -11 -10 -10 -9 -9 -8 -7 -7 -7 -------- Run | Yrd Mat Min Mat Min Mat Fac Was Fac Total Allies 5 | . . 5 . . . . . . Largest Group 5 | . . 5 . . . . . . Highest-Rated Group 82 | . . 82 . . . . . . Highest-Rated Ally 31 | . . 31 . . . . . . Total Orders . | . . . . . . . . . Ally Attacks 24 | . . 24 . . . . . . Total Damage 240 | . . 240 . . . . . . Kills 6 | . . 6 . . . . . . Allies Corrupted 1 | . . 1 . . . . . . Allies Melted . | . . . . . . . . . Intel | -11 -10 -10 -9 -9 -8 -7 -7 -7 ------- Run | Yrd Mat Min Mat Min Mat Fac Was Fac Robot Analysis Total . | . . . . . . . . . Derelict Logs Recovered 2 | . . . . 2 . . . . Drone Launches 14 | . . 4 6 . 2 . . 2 Drone Recoveries 10 | . . 3 3 1 3 . . . Exploration | -11 -10 -10 -9 -9 -8 -7 -7 -7 ------------- Run | Yrd Mat Min Mat Min Mat Fac Was Fac Turns Passed 4012 | 4 408 695 611 692 764 564 43 231 Spaces Moved 3391 | 3 242 413 318 416 374 1226 81 318 Core 323 | . . . . . . 202 79 42 Treads 1146 | . . 294 62 416 374 . . . Legs 620 | 3 242 119 256 . . . . . Wheels . | . . . . . . . . . Hover 276 | . . . . . . . . 276 Flight 1026 | . . . . . . 1024 2 . Fastest Speed 26 | 120 120 120 120 160 155 26 35 50 Average Speed 95 | 120 120 150 135 160 155 35 49 56 Slowest Speed 250 | 120 120 190 240 240 160 250 50 60 Overloaded Moves . | . . . . . . . . . Propulsion Burnouts . | . . . . . . . . . Robots Hopped 5 | . . . . . . 5 . . Cave-ins Triggered 2 | . . . . . . . . 2 Exploration Rate (%) 43 | 2 47 55 41 95 30 32 76 11 Regions Visited 8 Branch Regions 2 Pre-discovered Areas 1 | . . 1 . . . . . . Known Exits Taken 3 | . . 1 . 1 1 . . . Unknown Exits Taken 3 | 1 1 . 1 . . . . . Scrap Searched 2 | . . . . 2 . . . . Spaces Dug 17 | . . 7 . . . 5 . 5 Terrain Destroyed 50 | . 15 13 10 . . 7 . 5 Melee 10 | . . . . . . 5 . 5 Projectile . | . . . . . . . . . AOE 40 | . 15 13 10 . . 2 . . Terrain Rammed . | . . . . . . . . . Walls Destroyed . | . . . . . . . . . Machines Disabled . | . . . . . . . . . Actions | -11 -10 -10 -9 -9 -8 -7 -7 -7 --------- Run | Yrd Mat Min Mat Min Mat Fac Was Fac Total 3813 | 3 304 453 411 435 468 1304 82 353 Wait 95 | . 22 11 17 5 17 13 . 10 Move 3375 | 2 241 412 317 415 373 1217 80 318 Hop 4 | . . . . . . 4 . . Pick Up 23 | . 3 1 3 3 7 4 . 2 Fast Attach 31 | . 1 . 4 3 4 9 1 9 Attach 29 | . 2 . 11 1 2 8 1 4 Detach 12 | . . . 4 . 1 5 . 2 Swap 25 | 1 5 5 5 1 5 1 . 2 Drop 26 | . 3 1 5 3 8 6 . . Fire 142 | . 27 17 44 4 49 1 . . Melee 27 | . . . . . . 21 . 6 Ram . | . . . . . . . . . Kick 3 | . . 2 1 . . . . . Crush 6 | . . 4 . . 2 . . . Escape Stasis 15 | . . . . . . 15 . . Rewire . | . . . . . . . . . Trap . | . . . . . . . . . Miscellaneous . | . . . . . . . . . Route ------- -11/Scrapyard -10/Materials (discovered 2 exits: *Mat / *Min) -10/Mines -9/Materials (discovered 2 exits: *Mat / *Min) -9/Mines (discovered 2 exits: *Mat x2) -8/Materials -7/Factory -7/Waste -7/Factory (discovered 5 exits: Fac x4 / [*Sto]) History --------- Turn | Location | Event 1 | -11/Scrapyard | Discovered new exit (range 3) 5 | -11/Scrapyard | Entered Materials 145 | -10/Materials | Discovered new exit (range 16) 318 | -10/Materials | Build established: Mutant 393 | -10/Materials | Discovered new exit (range 12) 413 | -10/Materials | Entered Mines 441 | -10/Mines | Learned location of Storage (-7) 525 | -10/Mines | Discovered new exit (range 10) 539 | -10/Mines | Found the Drone Emporium 545 | -10/Mines | Found Prototype Device 545 | -10/Mines | Identified Sensor Drone Bay 553 | -10/Mines | Identified exit to Materials 637 | -10/Mines | Assisted by bots powering up and referring to "LRC-V3" 740 | -10/Mines | Assembled infested the area 822 | -10/Mines | Core integrity fell below 50% 826 | -10/Mines | Lost 6 allies 994 | -10/Mines | Core integrity fell below 20% 1108 | -10/Mines | Entered Materials 1108 | -9/Materials | Evolved 2 slots: Propulsion x1, Utility x1 1368 | -9/Materials | Discovered new exit (range 16) 1616 | -9/Materials | Lost 4 parts (1p3n) 1707 | -9/Materials | Discovered new exit (range 8) 1719 | -9/Materials | Entered Mines 1719 | -9/Mines | Accompanied by 3 allies 1766 | -9/Mines | Identified exit to Materials 1828 | -9/Mines | Learned Materials stockpile data 2067 | -9/Mines | Discovered exit to Materials (range 11) 2116 | -9/Mines | Received a Rocket Launcher from a helpful Derelict 2253 | -9/Mines | Build established: Scavenger-Mutant 2411 | -9/Mines | Entered Materials 2411 | -8/Materials | Accompanied by 2 allies 2411 | -8/Materials | Evolved 2 slots: Utility x2 2688 | -8/Materials | Discovered new exit (range 15) 2716 | -8/Materials | Identified exit to Factory 3175 | -8/Materials | Entered Factory 3175 | -7/Factory | Accompanied by 1 ally 3175 | -7/Factory | Evolved 2 slots: Propulsion x1, Utility x1 3405 | -7/Factory | Discovered new exit (range 20) 3418 | -7/Factory | Identified exit to Factory 3443 | -7/Factory | Lost 7 parts (1p4n2u) 3691 | -7/Factory | Build established: Mutant 3696 | -7/Factory | Core integrity fell below 50% 3739 | -7/Factory | Sucked down chute 3739 | -7/Factory | Entered Waste 3743 | -7/Waste | Spotted C-40 Crusher 3749 | -7/Waste | Spotted C-40 Crusher 3749 | -7/Waste | Crushed by Compactor (1 part destroyed, 2 dropped) 3754 | -7/Waste | EMP discharged 3754 | -7/Waste | System corruption reached 10% 3757 | -7/Waste | Spotted C-40 Crusher 3758 | -7/Waste | Spotted C-40 Crusher 3760 | -7/Waste | Crushed by Compactor (1 part destroyed, 1 dropped) 3762 | -7/Waste | Spotted C-40 Crusher 3764 | -7/Waste | Spotted C-40 Crusher 3775 | -7/Waste | Discovered new exit (range 11) 3782 | -7/Waste | Entered Factory 3936 | -7/Factory | Discovered new exit (range 17) 4002 | -7/Factory | Crushed by falling debris 4002 | -7/Factory | Core integrity fell below 20% 4012 | -7/Factory | Crushed by falling debris 4013 | -7/Factory | Destroyed by Y-54 Guardian with Flak Gun Last Messages --------------- System rejected. 03974_ Slug penetrates Wall. 03987_ Acquired Gravmag System. 03987_ K-01 Serf cleans the Fabricator. 03995_ Imp. Hover Unit destroyed. 03995_ Lgt. Deuterium Engine destroyed. 03998_ System corrupted: Heat flow error (+122). 03999_ Transmission Jammer destroyed. 04002_ The unstable cave ceiling collapses. 04002_ Crushed by falling debris. 04002_ Gravmag System destroyed. 04002_ System corrupted by crushing effect (+5). 04005_ Gravmag System destroyed. 04005_ Melee Analysis Suite destroyed. 04008_ P-60 Hacker resets Y-54 Guardian, system corruption cleaned. 04012_ The unstable cave ceiling collapses. 04012_ Crushed by falling debris. 04012_ Adv. System Shield destroyed. 04012_ System corrupted by crushing effect (+5). Map ----- +----------------------------------------------------+ | ?????????????????????????????????????????????????? | | ?????????????????????????????????????????????????? | | ?????????????????????????????????????????????????? | | ??????????????????????????????##?????????????????? | | ??????????????????????????????# ????????????????? | | ??????????????????????????????# ???????????????? | | ??????????????????????????????+ ??????????? ???? | | ??????????????????????????????# ?????????? #???? | | ??????????????????????????????# ########## #???? | | ??????????????????????????????# """"" #???? | | ??????????????????????????????#^^ "" F" #???? | | ??????????????????????????????# """ ""^"" #???? | | ??????????????????????????????# """ #???? | | ??????????????????????????????# """ #???? | | ??????????????????????????????# #???? | | ??????????????????????????????# #???? | | ??????????????????????????????# #???? | | ??????????????????????????#######+## #???? | | ??????????????????????????# """"" ### ##### #???? | | ??????????????????????????# ""T"" #?# #?????????? | | ??????????????????????????# #?# #?????????? | | ?????????????????????????##![ """ #?# #?????????? | | ?????????????????????????# [[ """ #?# #?????????? | | ?????????????????????????##[ """ #?# #?????????? | | ????????????????????????###p [#?# #?????????? | | ???????????????????????##@Y###########+#?????????? | | ???????????????????????#####??# #?????????? | | ??????????????????????# ##????#"""" #?????????? | | ??????????????????????##??????#"""" ##+##?????? | | ??????????????????????????????#"""" # ######? | | ??????????????????????????????#"""" + T | | ??????????????????????????????#"""" # ######? | | ??????????????????????????????#"""" !## ######## | | ?????????????